bitfinex/quotes_SOLUSD_20251124
["timestamp","ask_amount","ask_price","bid_price","bid_amount"]
[1763949578542,3.69586597,131.73,131.71,1.99999999]
[1763949578733,3.69586597,131.73,131.72,3.4]
[1763949579245,3.69586597,131.73,131.72,5.39999999]
[1763949579431,0.69,131.75,131.72,5.39999999]
[1763949579639,0.69,131.75,131.72,67.49999999]
[1763949579640,3.69586597,131.73,131.72,67.49999999]
[1763949579819,0.69,131.75,131.72,67.49999999]
[1763949580149,3.69586597,131.74,131.72,67.49999999]
[1763949580943,3.69586597,131.73,131.72,67.49999999]
[1763949583826,3.69586597,131.74,131.72,67.49999999]
[1763949584227,3.69586597,131.74,131.72,68.19999999]
[1763949584538,3.69586597,131.74,131.72,67.49999999]
[1763949584853,3.69586597,131.74,131.72,169.49999999]
[1763949585154,3.69586597,131.74,131.72,170.19999999]
[1763949585630,3.69586597,131.74,131.72,169.49999999]
[1763949585947,0.15374928,131.76,131.74,1.99999999]
[1763949586118,3.84961525,131.76,131.75,3.4]
[1763949586324,4.53961525,131.76,131.75,65.5]
[1763949587948,3.84961525,131.76,131.75,65.5]
[1763949588145,4.53961525,131.76,131.75,65.5]
[1763949589527,8.23548122,131.76,131.75,65.5]
[1763949590626,4.53961525,131.76,131.75,65.5]
[1763949590853,8.23548122,131.76,131.73,65.5]
[1763949591030,8.23548122,131.76,131.7,1.99999999]
[1763949591031,3.69586597,131.74,131.7,1.99999999]
[1763949591352,3.69586597,131.71,131.67,1.99999999]
[1763949591646,0.69,131.7,131.68,3.4]
[1763949592633,3.69586597,131.69,131.68,3.4]
[1763949593034,3.85666266,131.69,131.68,3.4]
[1763949593652,0.16079669,131.69,131.68,3.4]
[1763949593851,3.85666266,131.69,131.68,6.06999999]
[1763949594238,0.16079669,131.69,131.68,6.06999999]
[1763949594431,3.85666266,131.69,131.68,6.06999999]
[1763949595555,0.16079669,131.69,131.68,6.06999999]
[1763949595945,0.16079669,131.69,131.68,13.66416766]
[1763949599561,0.16555956,131.71,131.7,61.77439243]
[1763949600140,0.16555956,131.71,131.7,62.44439243]
[1763949600477,0.16555956,131.71,131.7,72.03740684]
[1763949600851,0.16555956,131.71,131.7,174.03740684]
[1763949601173,0.15487302,131.74,131.73,1.99999999]
[1763949601362,0.15487302,131.74,131.73,63.77439242]
[1763949601560,4.54073899,131.74,131.72,5.39999999]
[1763949601736,3.69586597,131.73,131.72,5.39999999]
[1763949601937,4.38586597,131.73,131.72,5.39999999]
[1763949602471,3.69586597,131.73,131.72,5.39999999]
[1763949602946,4.38586597,131.73,131.7,1.99999999]
[1763949603278,3.69586597,131.71,131.69,3.4]
[1763949603472,4.38586597,131.7,131.69,3.4]
[1763949603830,4.38586597,131.7,131.67,21.52096]
[1763949604063,3.69586597,131.68,131.67,23.52095999]
[1763949604252,3.69586597,131.68,131.67,3.4]
[1763949604572,4.38586597,131.68,131.67,3.4]
[1763949604769,0.69,131.68,131.67,3.4]
[1763949605062,4.38586597,131.7,131.69,1.99999999]
[1763949605436,4.38586597,131.7,131.66,1.99999999]
[1763949605645,3.69586597,131.67,131.66,1.99999999]
[1763949605946,0.69,131.73,131.67,1.99999999]
[1763949606173,3.69586597,131.69,131.68,3.4]
[1763949606466,3.69586597,131.7,131.69,1.99999999]
[1763949606965,3.69586597,131.71,131.69,1.99999999]
[1763949607276,3.69586597,131.7,131.68,5.39999999]
[1763949607449,3.69586597,131.69,131.68,3.4]
[1763949607842,4.38586597,131.69,131.68,3.4]
[1763949608454,4.38586597,131.69,131.66,1.99999999]
[1763949608663,0.69,131.68,131.67,3.4]
[1763949609168,0.69,131.7,131.68,1.99999999]
[1763949609364,0.69,131.72,131.68,1.99999999]
[1763949609661,0.69,131.72,131.69,1.99999999]
[1763949609871,3.69586597,131.71,131.7,1.99999999]
[1763949610072,3.69586597,131.71,131.68,0.67]
[1763949610073,4.38586597,131.71,131.68,1.99999999]
[1763949610375,4.38586597,131.7,131.67,5.39999999]
[1763949610666,3.69586597,131.7,131.68,1.99999999]
[1763949610871,4.38586597,131.7,131.68,1.99999999]
[1763949611174,3.69586597,131.7,131.68,1.99999999]
[1763949611864,3.69586597,131.7,131.69,1.99999999]
[1763949612045,4.38586597,131.7,131.68,1.99999999]
[1763949612567,4.38586597,131.7,131.67,5.39999999]
[1763949612766,4.38586597,131.7,131.69,1.99999999]
[1763949612965,4.54357602,131.7,131.69,1.99999999]
[1763949613469,4.54357602,131.7,131.67,5.39999999]
[1763949613773,4.54357602,131.7,131.69,1.99999999]
[1763949614452,4.54357602,131.7,131.69,61.77439243]
[1763949615064,0.15771005,131.7,131.69,63.77439242]
[1763949615447,0.15771005,131.7,131.69,64.44439242]
[1763949615875,0.15771005,131.7,131.69,63.77439242]
[1763949616672,0.15157061,131.73,131.72,20.12095999]
[1763949616972,0.15157061,131.73,131.72,27.84682596]
[1763949618253,0.15157061,131.73,131.72,2.62999999]
[1763949618477,0.15157061,131.73,131.72,5.39999999]
[1763949618775,0.15157061,131.73,131.72,3.4]
[1763949619074,3.83646476,131.74,131.72,5.39999999]
[1763949619075,3.69586597,131.74,131.72,5.39999999]
[1763949619878,3.69586597,131.75,131.73,1.99999999]
[1763949620262,3.69586597,131.74,131.73,1.99999999]
[1763949620663,9.43869174,131.74,131.73,1.99999999]
[1763949622181,9.43869174,131.74,131.72,5.39999999]
[1763949622767,10.12869174,131.73,131.69,1.99999999]
[1763949623071,9.43869174,131.71,131.7,3.4]
[1763949623469,10.12869174,131.71,131.7,3.4]
[1763949624063,10.12869174,131.71,131.68,1.99999999]
[1763949624261,10.12869174,131.71,131.69,1.99999999]
[1763949624965,0.69,131.74,131.69,1.99999999]
[1763949625166,9.43869174,131.73,131.71,1.99999999]
[1763949625678,9.43869174,131.74,131.72,5.39999999]
[1763949626080,0.69,131.8,131.75,1.99999999]
[1763949626287,0.69,131.8,131.72,12.83869174]
[1763949626288,0.69,131.8,131.76,1.99999999]
[1763949626459,9.43869174,131.77,131.76,1.99999999]
[1763949628583,5.54198383,131.77,131.76,1.99999999]
[1763949628880,0.69,131.79,131.74,1.99999999]
[1763949629385,5.54198383,131.75,131.73,3.4]
[1763949629690,5.54198383,131.74,131.73,65.01668238]
[1763949630392,6.23198383,131.74,131.73,3.4]
[1763949630688,6.23198383,131.74,131.72,63.61668237]
[1763949630689,6.23198383,131.74,131.71,1.99999999]
[1763949630862,5.54198383,131.73,131.7,24.19095999]
[1763949631063,5.54198383,131.73,131.72,1.99999999]
[1763949631369,5.54198383,131.73,131.7,24.19095999]
[1763949631683,5.54198383,131.73,131.7,5.39999999]
[1763949631888,18.12096,131.79,131.68,67.15866621]
[1763949631889,5.54198383,131.71,131.68,1.99999999]
[1763949632062,5.54198383,131.76,131.69,2.66999999]
[1763949632266,5.54198383,131.72,131.7,5.39999999]
[1763949632959,0.15950366,131.72,131.71,1.99999999]
[1763949635585,5.70148749,131.72,131.71,1.99999999]
[1763949638165,5.70148749,131.72,131.71,63.61668237]
[1763949638568,5.70148749,131.72,131.71,61.61668238]
[1763949638774,6.39148749,131.72,131.71,61.61668238]
[1763949639206,6.39148749,131.72,131.68,5.39999999]
[1763949639369,5.54198383,131.69,131.68,3.4]
[1763949639884,6.23198383,131.69,131.68,3.4]
[1763949640293,6.23198383,131.69,131.68,5.39999999]
[1763949640769,6.23198383,131.69,131.68,3.4]
[1763949640966,0.69,131.69,131.68,5.39999999]
[1763949641187,5.54198383,131.69,131.68,5.39999999]
[1763949641898,6.23198383,131.69,131.65,1.99999999]
[1763949642198,5.54198383,131.66,131.65,3.4]
[1763949644298,5.54198383,131.67,131.65,4.07]
[1763949644679,5.54198383,131.68,131.66,2.66999999]
[1763949644876,5.54198383,131.69,131.67,0.67]
[1763949645109,5.54198383,131.69,131.68,5.39999999]
[1763949645975,5.54198383,131.71,131.7,1.99999999]
[1763949646171,5.70148749,131.72,131.7,1.99999999]
[1763949646375,5.70148749,131.72,131.71,5.39999999]
[1763949646596,0.15950366,131.72,131.71,6.06999999]
[1763949646793,0.15950366,131.72,131.71,5.39999999]
[1763949647003,0.15950366,131.72,131.71,67.01668237]
[1763949647206,5.70148749,131.72,131.71,67.01668237]
[1763949647502,6.42148749,131.72,131.71,61.61668238]
[1763949648009,5.70148749,131.72,131.7,5.39999999]
[1763949648184,5.54198383,131.71,131.7,5.39999999]
[1763949649486,6.26198383,131.71,131.7,5.39999999]
[1763949649802,0.87950366,131.72,131.7,5.39999999]
[1763949650174,5.54198383,131.71,131.7,5.39999999]
[1763949651512,0.87950366,131.72,131.71,1.99999999]
[1763949651513,0.15950366,131.72,131.71,1.99999999]
[1763949651677,0.15950366,131.72,131.71,2.66999999]
[1763949651880,5.70148749,131.72,131.71,2.66999999]
[1763949653033,5.86375642,131.72,131.71,2.66999999]
[1763949653241,5.86375642,131.72,131.7,5.39999999]
[1763949653413,5.86375642,131.72,131.7,3.4]
[1763949653414,5.54198383,131.71,131.7,3.4]
[1763949653613,5.54198383,131.71,131.7,5.39999999]
[1763949654336,5.54198383,131.71,131.7,3.4]
[1763949654534,5.54198383,131.71,131.7,5.39999999]
[1763949654711,6.26198383,131.71,131.68,2.66999999]
[1763949655044,5.54198383,131.71,131.7,3.4]
[1763949655878,5.54198383,131.71,131.7,5.39999999]
[1763949656018,5.54198383,131.71,131.7,67.01668237]
[1763949657030,0.16226893,131.72,131.7,67.01668237]
[1763949657221,5.54198383,131.71,131.7,67.01668237]
[1763949657619,6.26198383,131.71,131.7,61.61668238]
[1763949657818,6.26198383,131.71,131.7,65.01668238]
[1763949658126,6.26198383,131.71,131.7,3.4]
[1763949658326,6.26198383,131.71,131.68,61.61668238]
[1763949658530,2.36776899,131.69,131.68,67.01668237]
[1763949658728,2.36776899,131.69,131.68,65.01668238]
[1763949658934,3.08776899,131.69,131.68,65.01668238]
[1763949659239,3.08776899,131.69,131.65,3.4]
[1763949659452,0.72,131.68,131.65,3.4]
[1763949659628,2.36776899,131.66,131.65,5.39999999]
[1763949659833,2.36776899,131.66,131.65,3.4]
[1763949660032,3.08776899,131.66,131.63,1.99999999]
[1763949660236,2.36776899,131.64,131.63,3.4]
[1763949660538,0.72,131.65,131.63,3.4]
[1763949660741,0.72,131.68,131.64,2.66999999]
[1763949660944,0.72,131.71,131.68,1.99999999]
[1763949661149,5.55394195,131.71,131.69,1.99999999]
[1763949661350,6.27394195,131.7,131.67,5.39999999]
[1763949661643,5.55394195,131.68,131.67,3.4]
[1763949661830,5.55394195,131.68,131.67,5.39999999]
[1763949662555,6.27394195,131.69,131.67,5.39999999]
[1763949663046,5.55394195,131.68,131.67,5.39999999]
[1763949663251,5.55394195,131.68,131.67,3.4]
[1763949663448,5.55394195,131.68,131.67,5.39999999]
[1763949663749,6.27394195,131.69,131.67,5.39999999]
[1763949664140,0.16226893,131.72,131.67,1.99999999]
[1763949664141,6.27394195,131.68,131.67,1.99999999]
[1763949664469,5.55394195,131.7,131.68,1.99999999]
[1763949665138,6.27394195,131.71,131.69,1.99999999]
[1763949665347,5.55394195,131.7,131.69,1.99999999]
[1763949665545,0.72,131.71,131.69,5.39999999]
[1763949665722,5.55394195,131.71,131.7,1.99999999]
[1763949665918,0.16226893,131.72,131.7,1.99999999]
[1763949666154,6.43621088,131.72,131.7,1.99999999]
[1763949666842,6.43621088,131.72,131.69,3.4]
[1763949666843,0.16226893,131.72,131.71,1.99999999]
[1763949667153,5.71621088,131.72,131.71,1.99999999]
[1763949667342,6.43621088,131.72,131.71,1.99999999]
[1763949667733,6.43621088,131.72,131.7,1.99999999]
[1763949667936,5.55394195,131.71,131.7,1.99999999]
[1763949668539,0.16226893,131.72,131.71,1.99999999]
[1763949670957,0.16226893,131.72,131.71,2.66999999]
[1763949672256,0.16226893,131.72,131.71,10.26243792]
[1763949672860,0.04142388,131.8,131.79,1.99999999]
[1763949673070,0.15680228,131.81,131.8,1.99999999]
[1763949673071,0.16657101,131.81,131.8,1.99999999]
[1763949673240,3.14170944,131.92,131.8,1.99999999]
[1763949673241,0.1,131.92,131.91,1.99999999]
[1763949673564,0.1,131.92,131.91,10.95394194]
[1763949673731,0.1,131.92,131.91,5.39999999]
[1763949673929,0.07651793,131.95,131.94,20.12095999]
[1763949674137,0.07651793,131.95,131.94,25.67490194]
[1763949674556,0.07,131.99,131.98,1.99999999]
[1763949674771,0.07,131.99,131.98,23.52095999]
[1763949674952,0.07,131.99,131.98,5.39999999]
[1763949675476,0.07,131.99,131.98,10.95394194]
[1763949675775,0.82,132.05,132.04,1.99999999]
[1763949676364,6.37394195,132.05,132.04,1.99999999]
[1763949676562,6.37394195,132.05,132.02,1.99999999]
[1763949676563,0.82,132.05,132.02,1.99999999]
[1763949676771,0.1,132.05,132.04,1.99999999]
[1763949677141,0.1,132.05,132.04,7.52521325]
[1763949677340,3.95957634,132.19,132.04,13.0791552]
[1763949677649,3.95957634,132.19,132.07,1.99999999]
[1763949677650,5.55394195,132.09,132.07,1.99999999]
[1763949677850,0.72,132.11,132.08,7.52521325]
[1763949678041,0.72,132.11,132.06,3.4]
[1763949678042,5.55394195,132.11,132.09,1.99999999]
[1763949678236,0.72,132.14,132.12,1.99999999]
[1763949678442,0.72,132.14,132.1,3.4]
[1763949678443,0.72,132.16,132.13,1.99999999]
[1763949678664,0.1,132.13,132.12,1.99999999]
[1763949678967,5.65394195,132.13,132.09,1.99999999]
[1763949679168,0.72,132.12,132.1,1.99999999]
[1763949679534,0.1,132.13,132.11,1.99999999]
[1763949679739,0.1,132.13,132.12,1.99999999]
[1763949679964,0.82,132.13,132.12,1.99999999]
[1763949680347,6.37394195,132.13,132.1,1.99999999]
[1763949680670,0.82,132.13,132.11,3.4]
[1763949680892,0.72,132.12,132.09,1.99999999]
[1763949681043,0.72,132.12,132.08,1.99999999]
[1763949681243,0.72,132.12,132.07,1.99999999]
[1763949681455,0.72,132.12,132.07,5.39999999]
[1763949681861,0.1,132.13,132.12,9.56887676]
[1763949682042,0.1,132.13,132.12,12.96887676]
[1763949682259,0.72,132.18,132.16,1.99999999]
[1763949682455,5.55394195,132.21,132.15,18.12096]
[1763949682456,0.72,132.21,132.18,1.99999999]
[1763949682676,0.72,132.21,132.17,3.4]
[1763949682677,18.12096,132.26,132.12,1.99999999]
[1763949682850,18.12096,132.26,132.1,3.4]
[1763949682851,18.12096,132.27,132.14,1.99999999]
[1763949683049,0.72,132.26,132.11,1.99999999]
[1763949683253,0.72,132.26,132.17,1.99999999]
[1763949683479,0.72,132.26,132.18,1.99999999]
[1763949683868,0.72,132.26,132.2,1.99999999]
[1763949684068,5.55394195,132.21,132.2,1.99999999]
[1763949684256,0.72,132.26,132.21,1.99999999]
[1763949684460,0.72,132.25,132.21,1.99999999]
[1763949684688,0.72,132.25,132.23,1.99999999]
[1763949684856,6.27394195,132.26,132.24,1.99999999]
[1763949685054,0.72,132.29,132.24,1.99999999]
[1763949685379,5.55394195,132.25,132.24,1.99999999]
[1763949685683,18.12096,132.31,132.24,1.99999999]
[1763949685851,5.55394195,132.25,132.24,1.99999999]
[1763949686174,5.55394195,132.25,132.22,2.28359999]
[1763949686373,5.55394195,132.23,132.17,18.12096]
[1763949686561,5.55394195,132.23,132.18,3.4]
[1763949686870,6.27394195,132.23,132.18,8.95394195]
[1763949687073,0.72,132.25,132.19,5.55394195]
[1763949687273,0.72,132.25,132.2,5.55394195]
[1763949687455,0.72,132.25,132.18,3.4]
[1763949687456,6.27394195,132.25,132.18,3.4]
[1763949687655,0.72,132.25,132.18,3.4]
[1763949687856,0.72,132.25,132.2,5.55394195]
[1763949688161,0.72,132.27,132.22,18.12096]
[1763949688470,0.72,132.34,132.22,18.12096]
[1763949688672,5.55394195,132.29,132.24,5.55394195]
[1763949688872,5.55394195,132.28,132.23,5.55394195]
[1763949689076,5.55394195,132.28,132.22,18.12096]
[1763949689277,5.55394195,132.26,132.23,3.4]
[1763949689463,5.55394195,132.25,132.17,7.56600155]
[1763949689677,5.55394195,132.25,132.14,18.91888877]
[1763949689678,5.55394195,132.23,132.18,8.95394195]
[1763949689877,0.72,132.26,132.18,8.95394195]
[1763949690058,0.72,132.26,132.19,5.55394195]
[1763949690261,0.72,132.26,132.18,3.4]
[1763949690262,5.55394195,132.23,132.18,3.4]
[1763949690454,0.72,132.26,132.18,8.95394195]
[1763949690757,0.72,132.25,132.18,3.4]
[1763949690958,1.99999999,132.35,132.22,9.36900754]
[1763949691181,0.72,132.34,132.24,9.36900754]
[1763949691410,3.9532213,132.38,132.24,18.12096]
[1763949691565,0.72,132.44,132.37,9.36900754]
[1763949691901,0.72,132.44,132.4,9.36900754]
[1763949692404,0.72,132.46,132.4,9.36900754]
[1763949692610,9.36900754,132.42,132.34,50.0]
[1763949692908,9.36900754,132.39,132.37,11.49454363]
[1763949693181,9.36900754,132.38,132.34,3.42]
[1763949693404,0.15940198,132.41,132.34,12.78900754]
[1763949693686,0.15940198,132.41,132.34,10.9760761]
[1763949693892,9.36900754,132.39,132.34,3.42]
[1763949694072,9.36900754,132.39,132.34,12.78900754]
[1763949694386,9.36900754,132.37,132.33,3.42]
[1763949694586,9.36900754,132.37,132.28,16.92871992]
[1763949694884,9.36900754,132.37,132.31,18.12096]
[1763949695188,0.15940198,132.41,132.29,3.42]
[1763949695361,9.36900754,132.33,132.3,3.42]
[1763949695568,9.36900754,132.34,132.3,3.42]
[1763949695972,0.72,132.34,132.3,3.42]
[1763949696170,0.15940198,132.41,132.3,3.42]
[1763949696370,9.36900754,132.35,132.3,3.42]
[1763949696571,0.87940198,132.41,132.3,3.42]
[1763949696783,9.36900754,132.37,132.32,9.36900754]
[1763949697092,9.36900754,132.35,132.3,12.78900754]
[1763949697771,10.08900754,132.35,132.3,12.78900754]
[1763949697973,0.15940198,132.41,132.31,3.42]
[1763949697974,10.08900754,132.34,132.31,3.42]
[1763949698173,9.36900754,132.32,132.18,1.99999999]
[1763949698494,10.08900754,132.33,132.21,9.36900754]
[1763949698682,10.08900754,132.33,132.19,3.42]
[1763949698683,9.36900754,132.25,132.19,3.42]
[1763949698888,1.99999999,132.31,132.19,3.42]
[1763949699193,9.36900754,132.21,132.19,3.42]
[1763949699968,0.72,132.23,132.19,3.42]
[1763949700293,9.36900754,132.22,132.19,3.42]
[1763949700488,10.08900754,132.22,132.19,3.42]
[1763949701068,10.08900754,132.37,132.24,18.12096]
[1763949701266,0.72,132.36,132.25,22.31710366]
[1763949701495,10.08900754,132.36,132.3,9.36900754]
[1763949701676,10.08900754,132.36,132.31,0.75580077]
[1763949701873,0.15940198,132.41,132.31,0.75580077]
[1763949701874,0.72,132.35,132.31,0.75580077]
[1763949702190,0.72,132.4,132.32,9.36900754]
[1763949702394,9.36900754,132.38,132.33,0.75568654]
[1763949702901,10.08900754,132.37,132.33,0.75568654]
[1763949703205,0.72,132.38,132.33,0.75568654]
[1763949703368,10.08900754,132.38,132.33,0.75568654]
[1763949703568,0.72,132.38,132.33,10.12469408]
[1763949703785,0.72,132.38,132.33,0.75568654]
[1763949703985,0.72,132.38,132.33,16.92573666]
[1763949704190,9.36900754,132.39,132.34,10.12463697]
[1763949704382,0.65,132.4,132.35,9.36900754]
[1763949704580,9.52840952,132.41,132.35,3.44]
[1763949704780,0.80940198,132.41,132.35,3.44]
[1763949705091,10.17840952,132.41,132.35,12.80900754]
[1763949705276,0.80940198,132.41,132.36,9.36900754]
[1763949705470,0.80940198,132.41,132.35,3.44]
[1763949705666,0.80940198,132.41,132.36,10.1245228]
[1763949705871,0.15940198,132.41,132.36,0.75551526]
[1763949706197,0.15940198,132.41,132.37,7.55458185]
[1763949706417,0.15940198,132.41,132.4,27.48996754]
[1763949706707,0.15940198,132.41,132.4,3.44]
[1763949707472,0.15940198,132.41,132.4,12.80900754]
[1763949707671,0.15940198,132.41,132.4,3.44]
[1763949707868,0.15940198,132.41,132.4,12.80900754]
[1763949708075,0.15940198,132.41,132.4,20.36187763]
[1763949708283,0.15940198,132.41,132.4,38.48283763]
[1763949709011,0.16053972,132.43,132.41,50.0]
[1763949709211,1e-08,132.44,132.43,77.48996754]
[1763949709513,1e-08,132.47,132.45,50.0]
[1763949709671,0.24212738,132.49,132.48,18.12096]
[1763949709874,0.24212738,132.49,132.46,3.44]
[1763949710101,0.24212738,132.49,132.48,9.36900754]
[1763949710406,0.24212738,132.49,132.48,27.48996754]
[1763949710910,0.24212738,132.49,132.48,35.03827671]
[1763949711420,0.24212738,132.49,132.42,18.87792138]
[1763949711712,0.24212738,132.49,132.48,9.36900754]
[1763949711922,9.36900754,132.57,132.48,30.92996754]
[1763949712208,0.7,132.58,132.49,16.91674699]
[1763949712405,9.36900754,132.57,132.49,16.91674699]
[1763949712784,0.7,132.58,132.49,35.78609562]
[1763949712980,0.13936649,132.53,132.49,26.41708808]
[1763949713196,0.13936649,132.53,132.52,9.36900754]
[1763949713512,0.13936649,132.53,132.52,3.44]
[1763949713682,10.20837403,132.53,132.46,25.67037041]
[1763949714006,9.36900754,132.51,132.49,3.44]
[1763949714195,0.83936649,132.53,132.43,12.80900754]
[1763949714196,9.36900754,132.5,132.43,12.80900754]
[1763949714510,9.36900754,132.47,132.43,3.44]
[1763949714805,9.36900754,132.44,132.43,3.44]
[1763949715019,9.36900754,132.44,132.39,3.44]
[1763949715180,9.36900754,132.44,132.28,51.99999999]
[1763949715181,9.36900754,132.4,132.33,9.36900754]
[1763949715385,9.36900754,132.36,132.33,3.44]
[1763949715583,27.48996754,132.44,132.34,9.36900754]
[1763949715584,9.36900754,132.39,132.34,9.36900754]
[1763949715930,0.7,132.45,132.38,18.12096]
[1763949716080,0.7,132.45,132.39,4.19534405]
[1763949716410,10.06900754,132.47,132.42,9.36900754]
[1763949716703,9.36900754,132.46,132.43,3.44]
[1763949716887,9.36900754,132.45,132.43,3.44]
[1763949717083,18.12096,132.52,132.43,3.44]
[1763949717275,10.06900754,132.46,132.43,3.44]
[1763949717979,18.12096,132.52,132.43,3.44]
[1763949718184,9.36900754,132.47,132.43,4.19511591]
[1763949718403,9.36900754,132.45,132.43,3.44]
[1763949718811,0.7,132.44,132.43,3.44]
[1763949720018,10.06900754,132.44,132.39,3.44]
[1763949720225,9.36900754,132.43,132.39,3.44]
[1763949720519,10.06900754,132.43,132.39,3.44]
[1763949720719,10.06900754,132.42,132.39,3.44]
[1763949720933,9.36900754,132.41,132.39,3.44]
[1763949721232,19.00434733,132.53,132.39,3.44]
[1763949721233,0.13936649,132.53,132.46,68.12096]
[1763949721389,0.13936649,132.53,132.49,9.36900754]
[1763949721709,0.13936649,132.53,132.52,27.48996754]
[1763949722222,0.83936649,132.53,132.5,0.75471698]
[1763949722395,0.83936649,132.53,132.43,51.99999999]
[1763949722396,9.36900754,132.51,132.46,3.46]
[1763949722590,9.36900754,132.52,132.47,9.36900754]
[1763949722797,10.06900754,132.52,132.47,10.12389543]
[1763949723015,0.7,132.51,132.47,10.12389543]
[1763949723218,10.06900754,132.51,132.47,18.87584789]
[1763949723401,9.36900754,132.5,132.47,0.75488789]
[1763949723597,0.7,132.5,132.47,0.75488789]
[1763949724117,9.50837403,132.53,132.48,7.54830917]
[1763949724305,0.13936649,132.53,132.48,7.54830917]
[1763949724622,0.13936649,132.53,132.49,0.75477394]
[1763949724830,0.13936649,132.53,132.51,9.36900754]
[1763949725025,0.13936649,132.53,132.51,28.24462756]
[1763949725327,0.13936649,132.53,132.52,9.36900754]
[1763949725492,0.14648129,132.56,132.52,9.36900754]
[1763949725696,0.14648129,132.56,132.55,9.36900754]
[1763949725909,0.14648129,132.56,132.55,12.82900754]
[1763949726114,0.14648129,132.56,132.55,38.49429043]
[1763949726506,0.14648129,132.56,132.55,39.9285454]
[1763949727322,1e-08,132.56,132.55,39.9285454]
[1763949727717,0.1569042,132.58,132.55,21.8075854]
[1763949727899,0.1569042,132.58,132.57,10.80326251]
[1763949728220,0.15820806,132.59,132.57,10.80326251]
[1763949728221,0.15820806,132.59,132.57,68.34644724]
[1763949728429,1e-08,132.59,132.58,10.80326251]
[1763949728804,0.1,132.64,132.61,18.12096]
[1763949729012,0.1,132.64,132.63,10.80326251]
[1763949730115,0.1,132.64,132.63,18.3430348]
[1763949730323,0.1,132.64,132.63,7.53977229]
[1763949730620,0.1,132.64,132.63,18.3430348]
[1763949731395,0.8,132.64,132.59,7.54204691]
[1763949731618,0.8,132.64,132.6,3.46]
[1763949731826,11.60326251,132.64,132.6,3.46]
[1763949732027,0.1,132.64,132.61,28.92422251]
[1763949732323,0.1,132.64,132.6,3.46]
[1763949732523,0.1,132.64,132.63,28.92422251]
[1763949732700,1.99999999,132.8,132.63,28.92422251]
[1763949732901,11.50326251,132.71,132.66,10.80326251]
[1763949733127,0.16569164,132.68,132.67,14.26326251]
[1763949733441,0.16569164,132.68,132.67,3.46]
[1763949733617,0.86569164,132.68,132.63,18.12096]
[1763949733821,0.86569164,132.68,132.64,14.26326251]
[1763949734019,0.86569164,132.68,132.64,3.46]
[1763949734211,10.80326251,132.67,132.64,3.46]
[1763949734532,11.66895415,132.68,132.64,3.46]
[1763949734699,0.7,132.67,132.64,14.26326251]
[1763949734903,10.80326251,132.66,132.59,0.75420469]
[1763949735122,0.7,132.65,132.6,14.26326251]
[1763949735431,11.66895415,132.68,132.64,18.12096]
[1763949735609,0.68,132.67,132.65,3.46]
[1763949736828,0.16569164,132.68,132.67,18.12096]
[1763949737029,0.84569164,132.68,132.65,3.46]
[1763949737403,11.64895415,132.68,132.65,3.46]
[1763949737806,0.16569164,132.68,132.65,21.80188531]
[1763949738025,0.16569164,132.68,132.65,10.9986228]
[1763949738534,0.16569164,132.68,132.66,11.55706923]
[1763949739223,0.16569164,132.68,132.66,0.75380672]
[1763949739536,0.84569164,132.68,132.65,3.46]
[1763949739732,11.64895415,132.68,132.65,3.46]
[1763949739921,11.64895415,132.68,132.57,1.99999999]
[1763949739922,10.80326251,132.66,132.59,8.29571524]
[1763949740106,10.80326251,132.65,132.6,3.46]
[1763949740311,10.80326251,132.64,132.6,3.46]
[1763949740523,10.80326251,132.62,132.6,3.46]
[1763949740716,10.80326251,132.63,132.6,3.46]
[1763949740916,0.68,132.67,132.6,3.46]
[1763949741116,11.48326251,132.66,132.6,14.26326251]
[1763949741433,0.68,132.66,132.62,10.80326251]
[1763949741623,0.16569164,132.68,132.6,21.58096]
[1763949741624,11.48326251,132.65,132.6,21.58096]
[1763949741829,11.48326251,132.65,132.57,0.75431847]
[1763949742025,10.80326251,132.6,132.57,3.46]
[1763949742231,10.80326251,132.61,132.57,3.46]
[1763949742425,10.80326251,132.62,132.57,3.46]
[1763949742827,0.68,132.61,132.57,3.46]
[1763949743533,0.68,132.61,132.57,11.00311475]
[1763949744326,0.68,132.61,132.57,3.46]
[1763949744528,18.28665164,132.68,132.57,3.46]
[1763949744529,0.68,132.65,132.6,10.80326251]
[1763949744732,11.48326251,132.65,132.61,3.46]